{"text_format":"1","workbook":"xlsx","n_sheets":9,"sheets":["Arkusz1","Część I i II","Część III-1","Część III-2","Część III-3","Część IV","Część V","Część VI","Część VII"],"not_rendered":{"charts":0,"images":2,"macros":1,"external_links":0,"defined_names":4,"comments":0,"pivot_tables":0},"unopened":[],"bounds":{"document_bytes":16777216,"sheet_cells":100000,"rows_first":2000,"rows_last":500,"rows_between":2000,"halvings":0,"cell_chars":16384,"cell_head_chars":4096},"cells_cut":0,"cells_raw":0,"read":"whole","date_system":"1900"}

{"sheet":"Arkusz1","index":0,"n_rows":52,"n_cols":13,"rows_kept":52,"cut":false,"hidden":false,"merged":[]}
[]
[]
[]
[]
[]
[]
[]
[]
["Suma kontrolna wniosku: "]
[]
[]
[]
[]
[]
[]
[]
[]
[]
[]
[]
[]
[]
[]
[]
[]
[]
[]
[]
[]
[]
[]
[]
[]
[]
[]
[]
[]
[]
[]
[]
[]
[]
[]
[]
[]
[]
[]
[]
[-1,0,23,32,null,null,null,null,null,"0 0",0,0,"1-podgląd\n2 - wydruk"]
["combbox1 index","walidacja","nw1","nw2","wskaźnik rez/prod","zadania","ile wskaźnik w zadaniu","zadanie czy modyfik","ile pozycji budżet","koniec","page1","page2","wydruki"]
[-1,0,23,32,2,"Indywidualny Plan Działania, Poradnictwo zawodowe, Pośrednictwo pracy.",6,-1,0,0,0,0]
[null,null,null,null,null,null,null,null,null,0]

{"sheet":"Część I i II","index":1,"n_rows":42,"n_cols":3,"rows_kept":42,"cut":false,"hidden":false,"merged":[[21,1,21,2],[0,1,0,2],[1,1,1,2],[2,1,2,2],[11,1,11,2],[4,1,4,2],[5,1,5,2],[6,1,6,2],[8,1,8,2],[7,1,7,2],[9,1,9,2]]}
[null,"Wniosek o dofinansowanie projektu pozakonkursowego dla Powiatowych Urzędów Pracy"]
[null,"REGIONALNY PROGRAM OPERACYJNY WOJEWÓDZTWA ZACHODNIOPOMORSKIEGO 2014-2020"]
[null,"EUROPEJSKI FUNDUSZ SPOŁECZNY"]
[]
[null,"Informacje wypełniane przez instytucję przyjmującą wniosek"]
[null,"Data przyjęcia wniosku:"]
[null,"Numer kancelaryjny wniosku:"]
[null,"Numer wniosku w lokalnym systemie informatycznym:"]
[null,"Numer wniosku w Centralnym systemie informatycznym SL 2014:"]
[null,"Imię i Nazwisko osoby przyjmującej wniosek:"]
[]
[null,"I.       INFORMACJE O PROJEKCIE"]
[null,"1.1.        Numer i nazwa Osi Priorytetowej:","VI Rynek pracy"]
[null,"1.2.        Numer i nazwa Działania:","6.5  Kompleksowe wsparcie dla osób bezrobotnych, nieaktywnych zawodowo i poszukujących pracy znajdujących się w szczególnie trudnej sytuacji na rynku pracy, obejmujące pomoc w aktywnym poszukiwaniu pracy oraz działania na rzecz podnoszenia kwalifikacji zawodowych"]
[null,"1.3.        Instytucja, w której wniosek zostanie złożony:","Wojewódzki Urząd Pracy w Szczecinie"]
[null,"1.4.        Numer naboru:","RPZP.06.05.00-IP.02-32-PO1/15"]
[null,"1.5.        Tytuł projektu:"]
[null,"1.6.        Okres realizacji projektu: od:       do:","od: 01.01.2015 r. do: 31.03.2016 r."]
[null,"1.7.        Obszar realizacji projektu:"]
[]
[]
[null,"II.       WNIOSKODAWCA"]
[null,"2.1.        Nazwa Wnioskodawcy:"]
[null,"2.2.        Status prawny:","powiatowe samorządowe jednostki organizacyjne"]
[null,"2.3.        Forma własności:","jednostki samorządu terytorialnego"]
[null,"2.4.        NIP:"]
[null,"2.5.        REGON:"]
[null,"2.6.        Adres siedziby: "]
[null,"Ulica:"]
[null,"Nr budynku:"]
[null,"Nr lokalu:"]
[null,"Miejscowość:"]
[null,"Kod pocztowy:"]
[null,"Telefon:"]
[null,"Fax:"]
[null,"Adres strony internetowej www:"]
[null,"2.7.        Osoba/y uprawniona/e do podejmowania decyzji wiążących w imieniu Wnioskodawcy: "]
[null,"2.8.        Osoba do kontaktów roboczych:"]
[null,"Numer telefonu:"]
[null,"Adres poczty elektronicznej:"]
[null,"Numer faksu:"]
[null,"Adres: [jeśli inny niż w pkt 2.6]"]

{"sheet":"Część III-1","index":2,"n_rows":31,"n_cols":10,"rows_kept":31,"cut":false,"hidden":false,"merged":[[0,1,0,9],[26,3,26,4],[19,4,19,5],[20,4,20,5],[21,4,21,6],[22,1,22,9],[16,1,16,9],[17,1,18,1],[17,2,18,2],[17,3,18,3],[17,4,17,7],[15,4,15,7],[9,1,9,9],[18,4,18,5],[14,4,14,7],[23,5,23,7],[2,1,2,9],[3,1,3,9],[4,1,4,9],[5,1,5,9],[6,1,6,9],[7,1,7,9],[17,8,18,8],[8,1,8,9],[10,1,10,9],[11,4,11,7],[12,4,12,7],[13,4,13,7],[17,9,18,9],[28,3,28,4],[29,3,29,4],[30,3,30,4],[25,3,25,4],[27,3,27,4],[23,8,24,8],[23,9,24,9],[23,1,24,1],[23,2,24,2],[23,3,24,4]]}
[null,"III. CHARAKTERYSTYKA PROJEKTU"]
[]
[null,"3.1        Zgodność projektu z właściwym celem szczegółowym RPO WZ 2014-2020"]
[null,"3.1.1.    Cel szczegółowy RPO WZ 2014-2020, do którego osiągnięcia przyczyni się realizacja projektu"]
[null,"Zwiększenie zatrudnienia wśród osób bezrobotnych, poszukujących pracy i nieaktywnych zawodowo znajdujących się w szczególnie trudnej sytuacji na rynku pracy."]
[null,"3.1.2.    Opis projektu"]
[null,"Podaj krótki opis projektu:\n- cel ogólny projektu;  \n- główne rezultaty, które zostaną osiągnięte dzięki realizacji projektu;\n- grupę docelową projektu;\n- główne zadania, które zostaną zrealizowane w ramach projektu.\nOpis projektu zawarty w pkt 3.1.2 wniosku powinien być zgodny z informacjami zawartymi przez wnioskodawcę w pozostałych częściach wniosku."]
[]
[null,"3.1.3.    Wskaźniki rezultatu i produktu"]
[null,"- Określ wartość docelową (której osiągnięcie będzie uznane za zrealizowanie wskazanego w pkt 3.1.1 celu szczegółowego RPO WZ 2014-2020) wskaźnika dot. spełnienia kryterium efektywności zatrudnieniowej oraz wskaźnika rezultatu;\n- Określ wartość docelową wskaźnika produktu;\n- Określ, gdy jest to zasadne, dodatkowo własny/e wskaźnik/i rezultatu i/lub produktu. Jednak wszystkie wskaźniki produktu powinny być powiązane z wskaźnikiem/ami rezultatu;\n- Określ jednostkę pomiaru wskaźników własnych jeżeli zostały ustalone;\n- Określ, w jaki sposób i na jakiej podstawie mierzone będą wskazane wskaźniki efektywności zatrudnieniowej oraz wskaźniki własne (jeżeli zostały ustalone), tj.: ustal źródło weryfikacji/pozyskania danych do pomiaru wskaźnika oraz częstotliwość pomiaru."]
[null,"Wskaźniki dot. spełnienia kryterium efektywności zatrudnieniowej"]
[null,"Lp.","Wskaźnik","Jednostka pomiaru wskaźnika","Wartość docelowa",null,null,null,"Źródło danych do pomiaru wskaźnika","Sposób pomiaru wskaźnika"]
[null,1,"Odsetek uczestników nie kwalifikujących się do żadnej z poniżej wymienionych grup docelowych, którzy podjęli zatrudnienie po zakończeniu udziału w projekcie","%"]
[null,2,"Odsetek osób długotrwale bezrobotnych, którzy podjęli zatrudnienie po zakończeniu udziału w projekcie","%"]
[null,3,"Odsetek osób z niepełnosprawnościami, którzy podjęli zatrudnienie po zakończeniu udziału w projekcie","%"]
[null,4,"Odsetek osób w wieku 50 lat i więcej, którzy podjęli zatrudnienie po zakończeniu udziału w projekcie","%"]
[null,"Wskaźniki rezultatu"]
[null,"Lp.","Wskaźnik","Jednostka pomiaru wskaźnika ","Wartość docelowa",null,null,null,"Źródło danych do pomiaru wskaźnika","Sposób pomiaru wskaźnika"]
[null,null,null,null,"K",null,"M","O"]
[null,1,"Liczba osób pracujących po opuszczeniu programu (łącznie z pracującymi na własny rachunek) (C)","osoby",null,null,null,null,"Nie dotyczy.","Nie dotyczy."]
[null,2,"Liczba osób, które uzyskały kwalifikacje po opuszczeniu programu (C) ","osoby",null,null,null,null,"Nie dotyczy.","Nie dotyczy."]
[null,3,"Liczba utworzonych miejsc pracy w ramach udzielonych z EFS środków na podjęcie działalności gospodarczej","szt.",null,null,null,null,"Nie dotyczy.","Nie dotyczy."]
[null,"Wskaźniki produktu"]
[null,"Lp.","Wskaźnik","Jednostka pomiaru wskaźnika",null,"Wartość docelowa",null,null,"Źródło danych do pomiaru wskaźnika","Sposób pomiaru wskaźnika"]
[null,null,null,null,null,"K","M","O"]
[null,1,"Liczba osób bezrobotnych (łączniez długotrwale bezrobotnymi) objętych wsparciem w programie (C)","osoby ",null,null,null,null,"Nie dotyczy.","Nie dotyczy."]
[null,2,"Liczba osób długotrwale bezrobotnych objętych wsparciem w programie (C)","osoby",null,null,null,null,"Nie dotyczy.","Nie dotyczy."]
[null,3,"Liczba osób z niepełnosprawnościami objętych wsparciem w programie (C)","osoby",null,null,null,null,"Nie dotyczy.","Nie dotyczy."]
[null,4,"Liczba osób w wieku 50 lat i więcej objętych wsparciem w programie","osoby",null,null,null,null,"Nie dotyczy.","Nie dotyczy."]
[null,5,"Liczba osób o niskich kwalifikacjach objętych wsparciem w programie","osoby",null,null,null,null,"Nie dotyczy.","Nie dotyczy."]
[null,6,"Liczba osób, które otrzymały bezzwrotne środki na podjęcie działalności gospodarczej w programie ","osoby ",null,null,null,null,"Nie dotyczy.","Nie dotyczy."]

{"sheet":"Część III-2","index":3,"n_rows":8,"n_cols":2,"rows_kept":8,"cut":false,"hidden":false,"merged":[[5,1,5,2],[6,1,6,2],[0,1,0,2],[1,1,1,2],[2,1,2,2],[3,1,3,2],[4,1,4,2]]}
[null,"3.2       Opis grupy docelowej"]
[null,"- Opisz, kogo obejmiesz wsparciem w ramach projektu - wskaż istotne cechy grupy docelowej;\n- Opisz, w jaki sposób określono udział poszczególnych grup docelowych w projekcie, zgodnie z kryterium poprawności grupy docelowej. "]
[]
[null,"- Opisz, w jaki sposób zrekrutujesz grupę docelową, w szczególności jakimi kryteriami posłużysz się rekrutując ich."]
[]
[null,"-   Opisz, w jaki sposób projekt spełnia zasadę polityki równych szans i niedyskryminacji;\n-   Opisz, w jaki sposób projekt spełnia zasadę równości szans kobiet i mężczyzn (zgodnie ze standardem minimum). "]
[]
[null,"3.2.1 Przewidywana liczba osób objętych wsparciem"]

{"sheet":"Część III-3","index":4,"n_rows":9,"n_cols":11,"rows_kept":9,"cut":false,"hidden":false,"merged":[[3,9,8,9],[3,10,8,10],[0,1,0,10],[1,1,1,10],[3,1,8,1],[3,2,8,2],[3,6,8,6],[3,7,8,7],[3,8,8,8]]}
[null,"3.3       Zadania i harmonogram realizacji projektu"]
[null,"-       Wskaż zadania, które będą realizowane w projekcie;\n-       Do każdego zadania przyporządkuj wskaźniki realizacji celu szczegółowego RPO WZ 2014-2020;\n-       Wskaż wartości ww. wskaźników."]
[null,"Nr zadania","Nazwa zadania","Wskaźniki realizacji celu szczegółowego\nRPO WZ 2014-2020\n(wskaźniki produktu)","Jednostka pomiaru wskaźnika","Wartość ogółem wskaźnika dla zadania","I kw. 2015","II kw. 2015","III kw. 2015","IV kw. 2015","I kw. 2016"]
[null,1,"Indywidualny Plan Działania, Poradnictwo zawodowe, Pośrednictwo pracy.","Liczba osób bezrobotnych (łączniez długotrwale bezrobotnymi) objętych wsparciem w programie (C)","osoby",{"$f":"'Część III-1'!H26","v":0}]
[null,null,null,"Liczba osób długotrwale bezrobotnych objętych wsparciem w programie (C)","osoby",{"$f":"'Część III-1'!H27","v":0}]
[null,null,null,"Liczba osób z niepełnosprawnościami objętych wsparciem w programie (C)","osoby",{"$f":"'Część III-1'!H28","v":0}]
[null,null,null,"Liczba osób w wieku 50 lat i więcej objętych wsparciem w programie","osoby",{"$f":"'Część III-1'!H29","v":0}]
[null,null,null,"Liczba osób o niskich kwalifikacjach objętych wsparciem w programie","osoby",{"$f":"'Część III-1'!H30","v":0}]
[null,null,null,"Liczba osób, które otrzymały bezzwrotne środki na podjęcie działalności gospodarczej w programie ","osoby",{"$f":"'Część III-1'!H31","v":0}]

{"sheet":"Część IV","index":5,"n_rows":12,"n_cols":6,"rows_kept":12,"cut":false,"hidden":false,"merged":[[6,3,6,4],[0,1,0,5]]}
[null,"IV.       BUDŻET PROJEKTU"]
[null,"L.p.","Kategoria wydatku",2015,2016,"Ogółem"]
[null,"4.1.          ","Koszty ogółem (4.1.1 + 4.1.2)",{"$f":"D4+D6","v":0},{"$f":"E4+E6","v":0},{"$f":"D3+E3","v":0}]
[null,"4.1.1.       ","Koszty bezpośrednie",{"$f":"SUM(D5:D5)","v":0},{"$f":"SUM(E5:E5)","v":0},0]
[null,null,"Indywidualny Plan Działania, Poradnictwo zawodowe, Pośrednictwo pracy.",0,0,0]
[null,"4.1.2.       ","Koszty pośrednie",0,0,{"$f":"D6+E6","v":0}]
[null,null,"jako % kosztów bezpośrednich (4.1.2/4.1.1)",null,null,{"$f":"ROUNDUP(F6/F4,4)","v":{"$error":"#DIV/0!"}}]
[]
[null,"4.2.          ","Wnioskowane dofinansowanie (4.1)",{"$f":"D3","v":0},{"$f":"E3","v":0},{"$f":"D9+E9","v":0}]
[null,null,"jako % wartości projektu ogółem (4.2/4.1)",{"$f":"D9/$D$3","v":{"$error":"#DIV/0!"}},{"$f":"E9/$E$3","v":{"$error":"#DIV/0!"}},{"$f":"F9/$F$3","v":{"$error":"#DIV/0!"}}]
[]
[null,"4.3.          ","Koszt przypadający na jednego uczestnika:",{"$f":"$F$3/'Część III-2'!C8","v":{"$error":"#DIV/0!"}}]

{"sheet":"Część V","index":6,"n_rows":13,"n_cols":11,"rows_kept":13,"cut":false,"hidden":false,"merged":[[0,1,0,10],[5,1,5,3],[5,4,5,6],[5,7,5,9],[3,1,3,3],[3,4,3,6],[3,7,3,9],[4,1,4,3],[4,4,4,6],[4,7,4,9],[1,10,2,10],[1,1,2,1],[1,2,2,2],[1,3,2,3],[1,4,1,6],[1,7,1,9],[6,1,6,3],[6,4,6,6],[6,7,6,9],[12,2,12,10],[7,1,7,3],[7,4,7,6],[7,7,7,9],[11,1,11,10],[8,1,8,3],[8,4,8,6],[8,7,8,9],[9,1,9,3],[9,4,9,6],[9,7,9,9]]}
[null,"V.       SZCZEGÓŁOWY BUDŻET PROJEKTU"]
[null,"Kategoria wydatku","Pomoc de minimis (T/N)","J.m",2015,null,null,2016,null,null,"Razem"]
[null,null,null,null,"ilość","koszt jednostkowy","łącznie","ilość","koszt jednostkowy","łącznie"]
[null,"Koszty ogółem (5.1)",null,null,{"$f":"'Część IV'!D3","v":0},null,null,{"$f":"'Część IV'!E3","v":0},null,null,{"$f":"E4+H4","v":0}]
[null,"Koszty bezpośrednie (5.1.1)",null,null,{"$f":"'Część IV'!D4","v":0},null,null,{"$f":"'Część IV'!E4","v":0},null,null,{"$f":"E5+H5","v":0}]
[null,"Indywidualny Plan Działania, Poradnictwo zawodowe, Pośrednictwo pracy ",null,null,0,null,null,0,null,null,0]
[null,"Koszty pośrednie (5.1.2)",null,null,0,null,null,0,null,null,{"$f":"E7+H7","v":0}]
[null,"jako % kosztów bezpośrednich (5.1.2/5.1.1)",null,null,{"$f":"ROUNDUP(E7/$E$5,4)","v":{"$error":"#DIV/0!"}},null,null,{"$f":"ROUNDUP(H7/$H$5,4)","v":{"$error":"#DIV/0!"}},null,null,{"$f":"ROUNDUP(K7/$K$5,4)","v":{"$error":"#DIV/0!"}}]
[null,"Wydatki bez pomocy de minimis",null,null,0,null,null,0,null,null,{"$f":"E9+H9","v":0}]
[null,"Wydatki objęte pomocą de minimis",null,null,0,null,null,0,null,null,{"$f":"E10+H10","v":0}]
[]
[null,"Oświadczam, iż ww. kwoty są kwotami zawierającymi VAT"]
[null,"Nazwa Wnioskodawcy:",{"$f":"'Część I i II'!C23","v":0}]

{"sheet":"Część VI","index":7,"n_rows":18,"n_cols":3,"rows_kept":18,"cut":false,"hidden":false,"merged":[[9,1,9,2],[10,1,10,2],[11,1,11,2],[13,1,13,2],[14,1,14,2],[8,1,8,2],[5,1,5,2],[6,1,6,2],[4,1,4,2],[0,1,0,2],[1,1,1,2],[3,1,3,2]]}
[null,"VI.       OŚWIADCZENIE"]
[null,"1. Oświadczam, że informacje zawarte w niniejszym wniosku są zgodne z prawdą.\n2. Oświadczam, że instytucja, którą reprezentuję nie zalega z uiszczaniem podatków, jak również \nz opłacaniem składek na ubezpieczenie społeczne i zdrowotne, Fundusz Pracy, Państwowy Fundusz Rehabilitacji Osób Niepełnosprawnych lub innych należności wymaganych odrębnymi przepisami.\n3. Oświadczam, że jestem uprawniony do reprezentowania beneficjenta w zakresie objętym niniejszym wnioskiem.\n4. Oświadczam, że podmiot, który reprezentuję nie podlega wykluczeniu z możliwości otrzymania dofinansowania, w tym wykluczeniu, o którym mowa w art. 207 ust. 4 ustawy z dnia 27 sierpnia 2009 r. o finansach publicznych (Dz. U. Nr 157, poz. 1240, z późn. zm.).\n5. Oświadczam, że projekt jest zgodny z właściwymi przepisami prawa unijnego i krajowego, w tym dotyczącymi zamówień publicznych oraz pomocy publicznej.\n6. Oświadczam, że zadania przewidziane do realizacji i wydatki przewidziane do poniesienia w ramach projektu nie są i nie będą współfinansowane z innych wspólnotowych instrumentów finansowych, w tym z innych funduszy strukturalnych Unii Europejskiej.\n7. Oświadczam, że informacje zawarte w niniejszym wniosku dotyczące pomocy publicznej w żądanej wysokości, w tym pomocy de minimis, o którą ubiega się beneficjent pomocy, są zgodne z przepisami ustawy z dnia 30 kwietnia 2004 r. o postępowaniu w sprawach dotyczących pomocy publicznej (Dz. U. z 2007 r. Nr 59, poz. 404, z późn. zm.) oraz z przepisami właściwego programu pomocowego ."]
[null,"Nie wnioskuję o zagwarantowanie przez właściwą instytucję ochrony informacji i tajemnic zawartych w niniejszym wniosku.","Wnioskuję o zagwarantowanie przez właściwą instytucję ochrony informacji i tajemnic zawartych w niniejszym wniosku:\n- Wskaż, które informacje i tajemnice zawarte we wniosku powinny być objęte ochroną."]
[null,"Nie dotyczy"]
[null,"Podstawa prawna ochrony ww. informacji i tajemnic ze względu na status wnioskodawcy:"]
[null,"Nie dotyczy"]
[null,"Jednocześnie wyrażam zgodę na udostępnienie niniejszego wniosku innym instytucjom oraz ekspertom dokonującym ewaluacji i oceny oraz wyrażam zgodę na udział w badaniach ewaluacyjnych mających na celu ocenę Programu."]
[]
[null,"Jestem świadomy odpowiedzialności karnej za podanie fałszywych danych lub złożenie fałszywych oświadczeń. "]
[]
[null,"Oświadczam, że zgodnie z art. 125 ust. 3 rozporządzenia Parlamentu Europejskiego i Rady (UE) nr 1303/2013 z dnia 17 grudnia 2013 r. ustanawiającego wspólne przepisy dotyczące Europejskiego Funduszu Rozwoju Regionalnego, Europejskiego Funduszu Społecznego, Funduszu Spójności, Europejskiego Funduszu Rolnego na rzecz Rozwoju Obszarów Wiejskich oraz Europejskiego Funduszu Morskiego i Rybackiego oraz ustanawiającego przepisy ogólne dotyczące Europejskiego Funduszu Rozwoju Regionalnego, Europejskiego Funduszu Społecznego, Funduszu Spójności i Europejskiego Funduszu Morskiego i Rybackiego oraz uchylającego rozporządzenie Rady (WE) nr 1083/2006 (Dz. Urz. UE L 347 z 20.12.2013, str. 320) dysponuję potencjałem administracyjnym, finansowym i operacyjnym umożliwiającym prawidłową realizację projektu zgodnie warunkami wsparcia określonymi w ramach Regionalnego Programu Operacyjnego Województwa Zachodniopomorskiego 2014-2020.\nJednocześnie oświadczam, że uzyskałem dostęp do dokumentów określających ww. warunki wsparcia."]
[]
[null,"Data wypełnienia wniosku:"]
[null,"Pieczęć i podpis osoby/ób uprawnionej/nych do podejmowania decyzji wiążących w stosunku do wnioskodawcy*."]
[null,"* obowiązek opatrzenia wniosku pieczęcią i podpisem nie dotyczy wniosków składanych jedynie w formie elektronicznej za pośrednictwem elektronicznej platformy usług administracji publicznej (ePUAP) lub w inny równoważny sposób"]
[]
[]
[null,"[1] Dotyczy wyłącznie projektów objętych zasadami pomocy publicznej."]

{"sheet":"Część VII","index":8,"n_rows":1,"n_cols":2,"rows_kept":1,"cut":false,"hidden":false,"merged":[[0,1,0,2]]}
[null,"VII. ZAŁĄCZNIKI"]